Cogmind - Beta 14 *** ADVENTURER MODE // 2024.09.20 @ 03:04:11 Player: Ms. V3-11A Result: Destroyed by G-73 Enforcer with Phase Gun Performance ------------- Evolutions (7) 3500 Regions Visited (21) 4200 Robots Destroyed (476) 2380 Value Destroyed (26644) 26644 Prototype IDs (54) 1080 Alien Tech Used (0) 0 Bonus (13333) 13333 TOTAL SCORE: 51137 Bonus ------- High Alert Combat Kills 8307 Follower Combat Kills 3638 Entered Garrisons 800 Used RIF Installer 1000 Network Hubs Disabled 400 Registered with UFD 300 Met R17 at Cetus 500 Friendly Fire -1612 Cogmind --------- Core Integrity 0/1300 Matter 217/300 Energy 260/260 System Corruption 49% Temperature Cool (9) Movement Treading (162) Location -3/Research Parts ------- > --- POWER (2) -------- Light Antimatter Reactor Light Quantum Reactor > --- PROPULSION (4) --- Advanced Medium Treads Improved Heavy Siege Treads > --- UTILITY (12) ----- Advanced Heat Sink Advanced Heat Sink (fused) Advanced Heat Sink EM Disruption Field > --- WEAPON (3) ------- Field Laser Plasma Rifle Phase Gun > --- INVENTORY (5) ---- Flexi-carbon Leg Energy Well (350) Advanced Matter Compressor (326) Experimental Sensor Array Plasma Cutter Peak State ------------ > --- POWER ------------ Particle Reactor Particle Reactor > --- PROPULSION ------- Centrium Heavy Treads Centrium Heavy Treads > --- UTILITY ---------- Advanced Heat Sink Advanced Heat Sink High-capacity Storage Unit Advanced Signal Interpreter Advanced Targeting Computer Experimental Targeting Computer Improved Core Shielding Centrium Medium Armor Plating Graphene Brace Improved Hacking Suite Improved Hacking Suite Experimental System Shield > --- WEAPON ----------- Plasma Rifle Heavy Gauss Cannon Heavy Gauss Cannon > --- INVENTORY -------- Light Antimatter Reactor Particle Reactor Light Particle Reactor Advanced Medium Treads Centrium Heavy Treads Advanced Heat Sink Advanced Heat Sink Energy Well Advanced Matter Compressor Experimental Sensor Array Heavy Armor Plating Advanced Force Field Advanced Variable Charge Gun Matter Neutralizer Heavy Machine Gun Heavy Proton Missile Launcher Fusion Bomb Launcher Plasma Cutter [Rating: 148] Favorites ----------- Power Cooled Deuterium Engine Engine Cooled Deuterium Engine Power Core Micro Fission Core Reactor Quantum Reactor Propulsion Armored Medium Treads Treads Armored Medium Treads Leg Flexi-carbon Leg Utility Large Storage Unit Device Advanced Heat Sink Storage Large Storage Unit Processor Experimental Targeting Computer Hackware Improved Hacking Suite Protection Improved Medium Armor Plating Weapon KE Penetrator Energy Gun Wave Gun Energy Cannon Advanced Beam Cannon Ballistic Gun KE Penetrator Ballistic Cannon Heavy Gauss Cannon Launcher Missile Launcher Special Weapon Plasma Cutter Impact Weapon Power Maul Build | -11 -10 -9 -8 -7 -7 -7 -7 -5 -5 -5 -5 -5 -5 -4 -4 -4 -4 -4 -3 -3 -3 ------- Run | Yrd Mat Mat Mat Fac Sto Rec Scr Fac Gar Fac Gar Fac Gar Fac Ext Cet Arc Hub Res Gar Res Slots Evolved 14 | . . 2 2 2 . . . 4 . . . . . 2 . . . . 2 . . Power 1 | . . . . 1 . . . . . . . . . . . . . . . . . Propulsion 2 | . . 1 1 . . . . . . . . . . . . . . . . . . Utility 10 | . . 1 1 1 . . . 3 . . . . . 2 . . . . 2 . . Weapon 1 | . . . . . . . . 1 . . . . . . . . . . . . . Parts Attached 438 | 3 5 24 42 11 22 1 7 52 46 6 29 2 5 24 17 15 . 16 66 26 19 Power 59 | . . 2 2 2 3 1 . 9 6 . 3 . . 2 3 4 . 2 11 5 4 Engine 16 | . . 2 2 2 2 1 . 6 1 . . . . . . . . . . . . Core 15 | . . . . . 1 . . 3 5 . 3 . . 1 1 . . . 1 . . Reactor 28 | . . . . . . . . . . . . . . 1 2 4 . 2 10 5 4 Propulsion 100 | 2 . 8 26 . 5 . 5 14 8 2 5 2 1 . 3 2 . . 8 4 5 Treads 97 | 2 . 8 26 . 5 . 5 14 8 2 5 2 1 . 3 2 . . 8 4 2 Leg 3 | . . . . . . . . . . . . . . . . . . . . . 3 Wheel . | . . . . . . . . . . . . . . . . . . . . . . Hover . | . . . . . . . . . . . . . . . . . . . . . . Flight . | . . . . . . . . . . . . . . . . . . . . . . Utility 137 | . 4 6 9 3 4 . 2 13 12 . 13 . . 15 11 3 . 7 22 8 5 Device 76 | . 2 3 4 . 3 . . 9 7 . 7 . . 10 8 1 . 3 9 6 4 Storage 5 | . 2 . . . . . . . 1 . . . . 1 . . . . 1 . . Processor 11 | . . . . 1 . . 1 2 . . 2 . . 3 . . . . 1 . 1 Hackware 5 | . . . . 1 . . . . . . . . . . . . . 1 3 . . Protection 40 | . . 3 5 1 1 . 1 2 4 . 4 . . 1 3 2 . 3 8 2 . Artifact . | . . . . . . . . . . . . . . . . . . . . . . Weapon 142 | 1 1 8 5 6 10 . . 16 20 4 8 . 4 7 . 6 . 7 25 9 5 Energy Gun 68 | 1 . 6 3 3 4 . . 9 8 3 3 . 2 3 . 3 . 3 8 5 4 Energy Cannon 25 | . . 1 1 . 3 . . 3 4 1 2 . . 3 . . . . 4 2 1 Ballistic Gun 24 | . 1 1 1 . . . . 2 5 . 3 . . . . 3 . 1 7 . . Ballistic Cannon 3 | . . . . . . . . . . . . . . 1 . . . . 2 . . Launcher 19 | . . . . 3 2 . . 2 1 . . . 2 . . . . 3 4 2 . Special Weapon 2 | . . . . . 1 . . . 1 . . . . . . . . . . . . Impact Weapon 1 | . . . . . . . . . 1 . . . . . . . . . . . . Slashing Weapon . | . . . . . . . . . . . . . . . . . . . . . . Piercing Weapon . | . . . . . . . . . . . . . . . . . . . . . . Special Melee Weapon . | . . . . . . . . . . . . . . . . . . . . . . Unidentified Prototypes 19 | . . 2 1 . 2 . . 2 . 1 . . . 2 . 4 . 2 1 . 2 Corrupted Parts 5 | . . . . . . . . 1 . . . . . . . . . . 4 . . System Corruption 28 | . . . . . . . . 2 . . . . . . . . . . 26 . . Parts Lost 107 | . 1 1 . . 2 . . 15 12 . 5 . 2 5 1 2 . 3 27 29 2 Power 21 | . . . . . . . . 5 2 . 1 . 1 . . 1 . . 6 4 1 Propulsion 15 | . . . . . . . . 2 2 . . . 1 . 1 . . . 4 5 . Utility 40 | . . 1 . . 1 . . 3 5 . 4 . . 2 . . . 2 7 15 . Weapon 31 | . 1 . . . 1 . . 5 3 . . . . 3 . 1 . 1 10 5 1 Highest Loss Streak 23 | . 1 1 . . 1 . . 3 8 . 1 . 2 3 1 2 . 2 11 23 2 To Critical Strikes . | . . . . . . . . . . . . . . . . . . . . . . Average Slot Usage (%) 91 | . 88 99 98 100 96 100 100 93 88 94 89 94 89 92 94 88 89 88 82 74 27 Engine 5 | . 14 11 9 15 13 7 15 7 1 . . . . . . . . . . . . Core 3 | . . . . . 1 6 . 2 6 11 10 11 6 5 5 4 . . 1 . . Reactor 1 | . . . . . . . . . . . . . . 2 5 5 10 9 5 5 3 Treads 22 | . 28 32 35 30 30 30 30 18 20 23 18 23 22 21 15 10 10 10 8 10 4 Device 14 | . 11 13 17 15 12 15 12 11 10 11 13 17 17 22 25 26 26 20 9 10 8 Storage 6 | . 14 11 9 7 7 7 7 5 4 5 5 5 5 5 5 5 5 5 4 3 . Processor 10 | . . . . 6 7 7 9 21 17 17 13 11 11 13 15 15 15 15 15 15 . Hackware 1 | . . . . . . . . . . . . . . . . . . 2 12 8 . Protection 6 | . . 8 8 7 7 7 7 3 6 5 5 5 5 4 5 5 5 6 7 7 . Energy Gun 7 | . 18 11 9 6 6 7 7 12 6 4 4 5 4 6 . 4 5 6 3 5 5 Energy Cannon 3 | . . . 8 7 6 7 7 3 1 . . . . 3 10 1 . . 1 3 1 Ballistic Gun 3 | . 1 9 . . . . . . 7 11 11 11 11 4 . 7 10 8 3 . . Peak Build Rating 148 | 6 10 20 37 44 55 55 58 88 89 89 101 95 95 110 116 142 142 146 148 146 81 Average Rating 74 | 5 7 17 28 43 48 54 56 79 79 85 95 95 90 99 111 128 141 141 134 107 48 On Entrance 71 | 6 6 10 20 37 44 55 55 58 88 85 88 95 95 89 108 116 142 141 128 104 3 Naked Turns 26 | . . . . . . . . . . . . . . . . . . . . 23 3 Heaviest Build 129 | 14 29 39 44 57 60 63 64 68 83 83 89 69 69 99 107 101 91 93 129 119 44 Greatest Support 160 | 40 40 60 82 82 100 100 100 140 140 115 117 111 111 108 140 160 160 160 160 140 105 Greatest Overweight (x) 3 | . . . . . . . . . 3 . . . . . . . . . . 2 . Average Overweight (x) . | . . . . . . . . . . . . . . . . . . . . . . Largest Inventory Capacity 20 | 8 15 15 15 15 15 15 15 15 15 15 15 15 15 15 15 15 15 15 20 20 5 Average Capacity 15 | 8 12 15 15 15 15 15 15 15 14 15 15 15 15 15 15 15 15 15 19 19 5 Most Carried 20 | 5 15 15 15 15 15 15 15 15 15 15 15 15 15 15 15 15 15 15 20 20 5 Average Carried 14 | 3 7 14 14 14 14 14 14 14 13 15 14 15 14 13 14 14 14 14 17 14 4 Final Capacity 20 | 8 15 15 15 15 15 15 15 15 15 15 15 15 15 15 15 15 15 15 20 5 5 Final Carried 15 | 2 15 15 15 14 15 14 15 15 15 15 15 15 14 13 15 15 15 15 13 5 5 Class Distribution -------------------- 43% | Scavenger-Gunner 23% | Mutant 11% | Commander-Mutant 9% | Scavenger-Mutant 3% | Wizard-Gunner Dominant Class ---------------- Mutant | -10/Materials Scavenger-Mutant | -9/Materials Scavenger-Mutant | -8/Materials Mutant | -7/Factory Mutant | -7/Storage Commander-Mutant | -7/Recycling Commander-Mutant | -7/Scraptown Scavenger-Gunner | -5/Factory Scavenger-Gunner | -5/Garrison Scavenger-Gunner | -5/Factory Scavenger-Gunner | -5/Garrison Scavenger-Gunner | -5/Factory Scavenger-Gunner | -5/Garrison Scavenger-Gunner | -4/Factory Scavenger-Gunner | -4/Extension Scavenger-Gunner | -4/Cetus Scavenger-Gunner | -4/Archives Scavenger-Gunner | -4/Hub_04(d) Wizard-Gunner | -3/Research Scavenger-Gunner | -3/Garrison Mutant | -3/Research Resources | -11 -10 -9 -8 -7 -7 -7 -7 -5 -5 -5 -5 -5 -5 -4 -4 -4 -4 -4 -3 -3 -3 ----------- Run | Yrd Mat Mat Mat Fac Sto Rec Scr Fac Gar Fac Gar Fac Gar Fac Ext Cet Arc Hub Res Gar Res Matter Collected 11291 | 200 228 280 332 208 371 10 50 577 1138 88 1211 14 331 1049 692 276 74 841 2567 612 142 Remotely . | . . . . . . . . . . . . . . . . . . . . . . Salvage Created 24649 | . 460 801 1901 1064 1088 384 . 4058 1770 251 2039 150 598 1045 1566 678 624 1534 3285 806 547 Parts 1055 | . 29 43 113 60 41 15 . 147 58 6 81 11 17 37 60 35 35 69 147 31 20 Haulers Intercepted 15 | . 2 2 6 . 4 . . 1 . . . . . . . . . . . . . Recyclers Shooed 16 | . . 3 2 1 3 . . 3 . . . . . 1 2 . . . 1 . . Parts Field Recycled . | . . . . . . . . . . . . . . . . . . . . . . Retrieved Matter . | . . . . . . . . . . . . . . . . . . . . . . Parts Self-Destructed . | . . . . . . . . . . . . . . . . . . . . . . Prevented . | . . . . . . . . . . . . . . . . . . . . . . Kills | -11 -10 -9 -8 -7 -7 -7 -7 -5 -5 -5 -5 -5 -5 -4 -4 -4 -4 -4 -3 -3 -3 ------- Run | Yrd Mat Mat Mat Fac Sto Rec Scr Fac Gar Fac Gar Fac Gar Fac Ext Cet Arc Hub Res Gar Res Combat Hostiles Destroyed 388 | . 9 16 33 24 17 6 . 59 29 1 25 2 17 14 21 8 4 25 54 16 8 Melee 2 | . . . . . . . . . 1 . 1 . . . . . . . . . . Guns 196 | . 8 15 14 6 7 2 . 33 15 1 24 2 8 11 . 5 4 16 14 4 7 Cannons 96 | . . . 17 8 2 3 . 10 6 . . . . 2 19 2 . . 24 3 . AOE 65 | . 1 . . 9 3 . . 9 5 . . . 9 . . . . 9 11 9 . Classes Destroyed 21 | . 4 2 6 3 . . . 1 1 . 2 . . 1 . . . 1 . . . Worker 19 | . . . 5 1 1 . . 5 . 1 . . . . . . . 2 4 . . Builder 10 | . . . . 1 . . . 1 . . . . . 2 2 . . 1 3 . . Tunneler 1 | . . . 1 . . . . . . . . . . . . . . . . . . Hauler 15 | . 2 2 6 . 4 . . 1 . . . . . . . . . . . . . Recycler 17 | . 2 2 1 2 . 1 . 3 . 1 . . . . 2 . . 2 1 . . Mechanic 4 | . . . 1 . . . . . . . . . . . . . . . 2 . 1 Operator 14 | . . 1 1 1 . . . 2 . . . 1 . . . . 7 1 . . . Watcher 8 | . . . . 1 1 . . 2 . . . . . . 1 2 . . 1 . . Swarmer 74 | . 6 7 8 11 . . . 15 . . . . 5 . . . . 4 12 3 3 Cutter 2 | . . . . . . . . . 2 . . . . . . . . . . . . Grunt 145 | . 3 4 12 9 6 1 . 26 16 1 4 . 10 5 8 . . 9 22 5 4 Brawler 16 | . . . 1 . . . . 2 2 . 8 . . 1 . . . . 2 . . Duelist 10 | . . . 1 . . 1 . . 2 . . . . 1 1 . . 1 3 . . Protector 1 | . . . . . . . . . . . . . . . . . . 1 . . . Sentry 64 | . . 5 10 2 8 3 . 4 6 . 6 1 . 1 4 . 4 3 2 4 1 Demolisher 3 | . . . . . . . . . . . . . . 2 . . . . . 1 . Specialist 1 | . . . . . . . . . . . 1 . . . . . . . . . . Hunter 22 | . . . 1 . 1 . . 5 . . . 1 2 2 4 . . . 3 3 . Programmer 35 | . . . . 3 2 1 . 6 . . 6 . . 2 2 . . 4 9 . . Heavy 1 | . . . . . . . . . . . 1 . . . . . . . . . . Behemoth 6 | . . . . . . . . 1 2 . . . . . 2 . . . 1 . . Cetus Guard 8 | . . . . . . . . . . . . . . . . 8 . . . . . Lightning 3 | . . . . . . . . . . . . . . . . . . 3 . . . Best Kill Streak 12 | . 3 4 7 8 5 3 . 9 6 1 9 1 12 8 5 5 5 9 10 6 3 Combat Bots Only 12 | . 3 4 5 6 5 3 . 9 6 1 9 1 12 6 4 4 4 8 6 6 3 Max Kills in Single Turn 5 | . 2 2 2 3 2 1 . 5 2 1 2 1 5 2 2 1 1 5 3 4 1 Gunslinging 1 | . . 1 . . . . . 1 1 . 1 . . . . . . 1 . . . Exploded 5 | . 1 . . 3 2 . . 5 2 . . . 5 . . . . 3 3 4 . Melee 1 | . . . . . . . . . 1 . 1 . . . . . . . . . . Uniques/NPCs Destroyed 1 | . . . . . . . . . . . . . . . . 1 . . . . . Revision 17 (-4/Cetus) Combat | -11 -10 -9 -8 -7 -7 -7 -7 -5 -5 -5 -5 -5 -5 -4 -4 -4 -4 -4 -3 -3 -3 -------- Run | Yrd Mat Mat Mat Fac Sto Rec Scr Fac Gar Fac Gar Fac Gar Fac Ext Cet Arc Hub Res Gar Res Hostile Shots Fired 3256 | . 32 100 147 218 283 103 . 336 270 26 108 26 111 100 147 100 3 150 617 272 107 Missed 1035 | . 6 23 50 97 135 44 . 92 64 8 27 10 26 22 59 30 1 39 185 84 33 Damage Taken 34164 | . 216 598 1143 1022 1079 277 . 3526 3523 332 1666 412 1112 1564 1428 1496 77 2198 7517 3774 1204 Core 3094 | . 53 109 139 57 69 32 . 321 381 16 67 92 26 121 101 21 17 172 406 744 150 Absorbed by Shields 384 | . . . . . . 72 . 94 . . . . . . . . . . 218 . . Reduced by Siege Mode 253 | . . . . . . . . . . . . . . . . 144 . . 21 88 . Redirected to Shielding 270 | . . . . . . . . . . . . . . . . . . 37 154 79 . Ignored by Resistances 9656 | . 63 191 327 322 353 112 . 950 940 92 451 111 315 433 401 407 22 615 2164 1038 349 Regen/Repaired (Parts) 640 | . 21 7 178 . 139 . . 123 . . . . . 80 . . . . 92 . . Core Remaining (%) 67 | 100 78 72 74 . . . 77 . . . . . 9 . . . . 62 . . . Volleys Fired 1203 | . 35 53 96 65 78 38 . 146 98 8 98 13 19 41 54 27 21 71 154 35 53 Largest 3 | . 2 2 2 2 2 2 . 3 3 3 3 3 3 3 3 3 3 3 3 3 3 Hottest 298 | . 90 126 131 129 129 90 . 213 213 171 147 147 147 259 256 289 150 203 240 298 226 Shots Fired 2757 | . 56 106 192 126 147 69 . 375 230 25 246 27 45 116 160 75 59 189 371 62 81 Gun 1896 | . 56 106 96 60 69 31 . 304 167 21 237 27 40 97 . 55 59 179 185 29 78 Cannon 806 | . . . 96 61 72 38 . 67 59 4 9 . . 19 160 20 . . 177 21 3 Launcher 55 | . . . . 5 6 . . 4 4 . . . 5 . . . . 10 9 12 . Special . | . . . . . . . . . . . . . . . . . . . . . . Kinetic 867 | . 8 45 . . . . . 10 97 16 174 22 28 51 53 30 42 99 192 . . Thermal 1773 | . 35 61 192 121 141 69 . 350 129 9 72 5 12 65 107 45 17 80 135 50 78 Explosive 44 | . . . . 5 6 . . 4 4 . . . 5 . . . . 10 4 6 . Electromagnetic 73 | . 13 . . . . . . 11 . . . . . . . . . . 40 6 3 Robot Hit Streak 79 | . 14 20 19 25 39 40 . 55 45 13 27 36 42 79 25 36 31 32 38 31 32 Robot Miss Streak 4 | . 2 4 3 2 2 1 . 2 2 1 2 . 2 1 2 2 1 2 2 2 3 Penetration Max 1 | . . . . . . . . 1 1 . 1 . 1 1 1 1 . 1 1 . . Secondary Targets 39 | . 1 4 . . . . . 5 5 1 8 . 3 1 . 2 . 2 6 . 1 Max Gunslinging Chain 2 | . 1 1 . . . . . 1 1 1 2 . 1 1 . 1 . 1 1 . 1 Shots Hit Robots 2025 | . 44 80 147 97 108 30 . 304 164 8 151 19 34 102 113 66 45 111 293 51 58 Core Hits 963 | . 19 35 63 58 39 10 . 133 73 6 71 7 31 46 47 32 22 79 129 42 21 Critical Kills 23 | . . . 3 1 2 . . 1 . . 2 1 1 1 2 2 3 2 2 . . Critical Parts Destroyed 28 | . . . . . . . . . 2 . 4 1 . 2 . 6 4 8 1 . . Critical Strikes 137 | . 4 4 11 8 6 . . 13 7 . 14 2 1 8 9 9 7 10 23 . 1 Burn 60 | . 4 4 8 7 4 . . 12 4 . 6 . . 5 . . . . 5 . 1 Meltdown 11 | . . . 3 1 2 . . 1 . . . . . . 2 . . . 2 . . Destroy 43 | . . . . . . . . . 2 . 8 2 1 3 . 9 7 10 1 . . Blast 22 | . . . . . . . . . . . . . . . 7 . . . 15 . . Smash 1 | . . . . . . . . . 1 . . . . . . . . . . . . Melee Attacks 7 | . . . . . . . . . 7 . . . . . . . . . . . . Impact 7 | . . . . . . . . . 7 . . . . . . . . . . . . Slashing . | . . . . . . . . . . . . . . . . . . . . . . Piercing . | . . . . . . . . . . . . . . . . . . . . . . Sneak Attacks . | . . . . . . . . . . . . . . . . . . . . . . Combat Hostiles . | . . . . . . . . . . . . . . . . . . . . . . Follow-up Attacks . | . . . . . . . . . . . . . . . . . . . . . . Damage Inflicted 65124 | . 624 1101 3049 2953 2780 746 . 9181 5356 435 4461 423 1939 2954 4469 2221 1242 5444 10352 3899 1495 Guns 34276 | . 503 1101 1541 898 1095 308 . 5875 3015 202 4402 423 787 2451 . 1546 1242 2954 3823 699 1411 Cannons 18827 | . . . 1487 995 1089 435 . 2182 1271 . 37 . . 479 4355 675 . . 4974 764 84 Explosions 11480 | . 116 . . 1006 553 . . 1100 744 233 . . 1152 . 114 . . 2490 1536 2436 . Melee 326 | . . . . . . . . . 326 . . . . . . . . . . . . Ramming 215 | . 5 . 21 54 43 3 . 24 . . 22 . . 24 . . . . 19 . . Kinetic 17226 | . 41 287 . . . . . 213 1636 129 3527 299 544 1461 1297 962 776 1480 4574 . . Thermal 35062 | . 441 814 3028 1893 2184 743 . 7661 2650 148 912 124 243 1469 3172 1259 466 1474 3507 1463 1411 Explosive 10094 | . . . . 1006 553 . . 1100 744 158 . . 1152 . . . . 2182 1178 2021 . Electromagnetic 2201 | . 137 . . . . . . 183 . . . . . . . . . 308 1074 415 84 Impact 326 | . . . . . . . . . 326 . . . . . . . . . . . . Slashing . | . . . . . . . . . . . . . . . . . . . . . . Piercing . | . . . . . . . . . . . . . . . . . . . . . . Highest Corruption 49 | . . . . 1 1 1 . 8 10 10 23 24 24 4 4 4 4 19 49 49 49 Average Corruption 11 | . . . . 1 1 1 . 3 9 10 16 23 24 3 4 4 4 9 25 49 49 Corruption Purged . | . . . . . . . . . . . . . . . . . . . . . . Corruption Blocked . | . . . . . . . . . . . . . . . . . . . . . . Effects 554 | . . . . 12 12 9 . 24 85 16 91 25 15 3 29 10 3 36 107 36 41 Message Errors 116 | . . . . 2 5 3 . 3 11 3 23 5 2 1 8 2 . 8 26 6 8 Matter Fused 109 | . . . . 2 2 1 . 7 23 5 14 2 3 2 5 3 1 8 19 6 6 Heat Flow Errors 59 | . . . . 2 1 1 . 2 12 1 9 5 4 . 2 2 1 6 5 4 2 Energy Discharges 73 | . . . . 2 1 1 . 1 11 3 16 4 1 . 7 1 1 2 11 7 4 Parts Rejected 12 | . . . . . . . . 1 . . . . . . 1 . . 1 7 2 . Parts Fused 6 | . . . . . . . . . 2 . 2 . . . 1 . . . . . 1 Data Loss (minor) 55 | . . . . 2 2 1 . 6 15 1 11 3 2 . 1 1 . 1 6 2 1 Data Loss (major) 22 | . . . . 1 . . . 1 4 . 5 1 . . 2 1 . . 5 2 . Misfires 22 | . . . . 1 . 2 . . 4 1 4 . 1 . . . . 2 4 2 1 Alerts 7 | . . . . . . . . 1 1 2 . . . . . . . 2 . 1 . Misdirections 11 | . . . . . . . . . . . . . . . . . . . 10 . 1 Weapon Failures 62 | . . . . . 1 . . 2 2 . 7 5 2 . 2 . . 6 14 4 17 Overload Shots 89 | . . . . . 1 1 . 79 6 . . . . . . . . . 2 . . Effects 7 | . . . . . . 1 . 5 1 . . . . . . . . . . . . Energy Bleed 3 | . . . . . . . . 3 . . . . . . . . . . . . . Heat Surge 2 | . . . . . . . . 1 1 . . . . . . . . . . . . Short Circuit 2 | . . . . . . 1 . 1 . . . . . . . . . . . . . Overflow Damage 627 | . . . 2 2 15 8 . 220 63 . 2 . . 9 85 . . 91 81 49 . Projectiles 358 | . . . 2 . 7 8 . 169 . . 2 . . 9 85 . . . 76 . . Explosions 212 | . . . . 2 8 . . 51 6 . . . . . . . . 91 5 49 . Melee 57 | . . . . . . . . . 57 . . . . . . . . . . . . Knockbacks 42 | . . . . . 1 . . . 1 . 1 . . . 11 . . . 28 . . Impact 3 | . . . . . 1 . . . 1 . 1 . . . . . . . . . . Kinetic 34 | . . . . . . . . . . . . . . . 9 . . . 25 . . Secondary 5 | . . . . . . . . . . . . . . . 2 . . . 3 . . Self-Inflicted Damage 524 | . 32 . . 3 16 . . . . . 44 . . . 34 . . 157 207 31 . Shots 13 | . 1 . . 1 1 . . . . . 1 . . . 1 . . 2 5 1 . Rammed 25 | . 4 . 3 3 2 . . 3 . . 4 . . 2 . . . . 4 . . Targets Rammed 31 | . 4 . 5 4 3 1 . 3 . . 5 . . 2 . . . . 4 . . Kicked . | . . . . . . . . . . . . . . . . . . . . . . Crushed 6 | . . . 2 1 1 1 . . . . 1 . . . . . . . . . . Highest Temperature 656 | . 201 252 303 253 236 252 . 656 442 169 223 174 240 498 495 199 159 241 582 382 189 Average Temperature 94 | . 59 45 72 37 32 150 . 215 130 75 92 76 99 128 173 75 84 66 99 141 46 Received Heat Transfer 7868 | . 39 189 576 306 423 99 . 1124 1665 24 306 33 216 123 195 243 9 249 1127 607 315 Effects 48 | . . 1 1 . . . . 16 6 . . . . 5 6 . . . 10 3 . Shutdowns 15 | . . . . . . . . 3 2 . . . . 3 5 . . . 2 . . Energy Bleed 6 | . . . 1 . . . . 2 1 . . . . 1 . . . . 1 . . Interference 16 | . . 1 . . . . . 8 3 . . . . 1 . . . . . 3 . Matter Decay 2 | . . . . . . . . . . . . . . . 1 . . . 1 . . Short Circuit 3 | . . . . . . . . 1 . . . . . . . . . . 2 . . Damage (minor) 2 | . . . . . . . . 1 . . . . . . . . . . 1 . . Damage (major) 3 | . . . . . . . . . . . . . . . . . . . 3 . . Damage (core) 1 | . . . . . . . . 1 . . . . . . . . . . . . . Siege Activations 4 | . . . . . . . . . . . . . . . . 2 . . 1 1 . Total Turns 83 | . . . . . . . . . . . . . . . . 58 . . 11 14 . Longest Duration 31 | . . . . . . . . . . . . . . . . 31 . . 11 14 . Robots Corrupted 2 | . . . . . . . . . 1 . . . . . . . . . 1 . . Combat Hostiles 2 | . . . . . . . . . 1 . . . . . . . . . 1 . . Parts Fried 14 | . . . . . . . . 1 . . . . . . . . . . 13 . . Impact Corruptions 4 | . . . . . . . . . 3 . 1 . . . . . . . . . . Robots Melted 30 | . 1 1 3 1 5 1 . 8 1 . . . . 1 2 1 . . 4 . 1 Combat Hostiles 27 | . . 1 2 1 5 1 . 7 1 . . . . 1 2 1 . . 4 . 1 Parts Melted 195 | . 3 3 20 14 15 2 . 71 5 . 3 . . 14 5 2 2 2 19 6 9 Heat Transferred 55410 | . 1358 2035 6253 4144 4255 1110 . 12254 3795 161 1776 185 370 2053 3232 1480 629 1741 4911 1442 2226 Parts Sabotaged . | . . . . . . . . . . . . . . . . . . . . . . Parts Stolen . | . . . . . . . . . . . . . . . . . . . . . . Parts Stripped . | . . . . . . . . . . . . . . . . . . . . . . Power Chain Reactions 4 | . 2 . . . . . . . . . . . . . . . . 1 1 . . Alert | -11 -10 -9 -8 -7 -7 -7 -7 -5 -5 -5 -5 -5 -5 -4 -4 -4 -4 -4 -3 -3 -3 ------- Run | Yrd Mat Mat Mat Fac Sto Rec Scr Fac Gar Fac Gar Fac Gar Fac Ext Cet Arc Hub Res Gar Res Peak Influence 2776 | . 218 285 480 695 692 300 . 945 2102 1349 2776 1445 1203 718 416 240 222 1166 1893 1474 856 Initial 1262 | . . 6 . 110 270 109 . . 556 956 803 1262 768 547 209 132 54 64 529 1167 679 Average 693 | . 65 121 256 253 506 125 . 511 1396 1081 1845 1315 967 597 229 193 187 554 1065 1241 721 Maximum Alert Level 5 | . 1 1 2 2 2 1 . 3 5 4 5 4 4 3 2 1 1 4 5 4 3 Low Security (%) 24 | 100 87 89 18 44 . 88 . 25 . . . . . . 37 43 39 11 . . . Level 1 19 | . 12 10 75 44 11 11 . 3 . . . . . . 54 56 60 24 . . . Level 2 19 | . . . 5 10 88 . . 43 6 . . . . 95 7 . . 20 27 . 56 Level 3 12 | . . . . . . . . 27 14 61 18 . 90 4 . . . 40 23 . 43 Level 4 14 | . . . . . . . . . 48 38 19 100 9 . . . . 2 37 100 . Level 5 9 | . . . . . . . . . 30 . 61 . . . . . . . 12 . . High Security . | . . . . . . . . . . . . . . . . . . . . . . Max Security . | . . . . . . . . . . . . . . . . . . . . . . Squads Dispatched 67 | . . 1 5 10 5 . . 14 . 3 . 2 . 4 1 . . 3 18 . 1 Investigation 22 | . . . 2 5 1 . . 6 . . . . . 1 1 . . . 6 . . Extermination 17 | . . . . 3 2 . . 3 . 1 . . . 1 . . . 2 5 . . Reinforcement 12 | . . 1 2 2 2 . . 1 . 1 . . . 1 . . . 1 1 . . Assault 10 | . . . . . . . . 2 . 1 . 2 . 1 . . . . 3 . 1 Garrison 6 | . . . 1 . . . . 2 . . . . . . . . . . 3 . . Intercept . | . . . . . . . . . . . . . . . . . . . . . . Searches Triggered . | . . . . . . . . . . . . . . . . . . . . . . Construction Impeded 4 | . . . . 1 . . . . . 1 . . . 1 . . . . 1 . . Haulers Reinforced 1 | . . . . . 1 . . . . . . . . . . . . . . . . Active Scanning Responses . | . . . . . . . . . . . . . . . . . . . . . . Cargo Convoy Interrupts 1 | . . . . . . . . . . . . . . 1 . . . . . . . Stealth | -11 -10 -9 -8 -7 -7 -7 -7 -5 -5 -5 -5 -5 -5 -4 -4 -4 -4 -4 -3 -3 -3 --------- Run | Yrd Mat Mat Mat Fac Sto Rec Scr Fac Gar Fac Gar Fac Gar Fac Ext Cet Arc Hub Res Gar Res Distress Signals 26 | . 1 2 2 7 2 . . 3 . . . . . . 1 2 . 1 5 . . Communications Jammed . | . . . . . . . . . . . . . . . . . . . . . . Distress Signals . | . . . . . . . . . . . . . . . . . . . . . . Times Spotted 599 | . 17 21 49 54 26 8 . 88 31 8 37 5 14 16 27 11 10 37 99 24 17 Peak Tracking Total 13 | . 5 5 6 9 6 2 . 8 7 4 10 3 9 6 5 5 1 9 13 11 5 Tactical Retreats 22 | . . . . 1 1 . . 8 . . 1 . . . 1 . . 2 6 1 1 Traps | -11 -10 -9 -8 -7 -7 -7 -7 -5 -5 -5 -5 -5 -5 -4 -4 -4 -4 -4 -3 -3 -3 ------- Run | Yrd Mat Mat Mat Fac Sto Rec Scr Fac Gar Fac Gar Fac Gar Fac Ext Cet Arc Hub Res Gar Res Traps Triggered 15 | . . 2 1 . . . . . . . 3 1 . 2 . . . 1 2 3 . Indirectly . | . . . . . . . . . . . . . . . . . . . . . . Trap Hack Attempts . | . . . . . . . . . . . . . . . . . . . . . . Triggered . | . . . . . . . . . . . . . . . . . . . . . . Disarmed 1 | . 1 . . . . . . . . . . . . . . . . . . . . Reprogrammed . | . . . . . . . . . . . . . . . . . . . . . . Reused . | . . . . . . . . . . . . . . . . . . . . . . Traps Extracted . | . . . . . . . . . . . . . . . . . . . . . . Installed . | . . . . . . . . . . . . . . . . . . . . . . Triggered 2 | . . . . . . . . . . . . . . 2 . . . . . . . Machines | -11 -10 -9 -8 -7 -7 -7 -7 -5 -5 -5 -5 -5 -5 -4 -4 -4 -4 -4 -3 -3 -3 ---------- Run | Yrd Mat Mat Mat Fac Sto Rec Scr Fac Gar Fac Gar Fac Gar Fac Ext Cet Arc Hub Res Gar Res Machines Disabled 138 | . . 1 . 6 5 21 . 2 11 15 20 1 1 . 8 . 4 33 6 3 1 Max in Single Turn 9 | . . 1 . 1 1 1 . 1 2 5 2 1 1 . 4 . 2 9 1 2 1 Garrison Access 4 | . . . 1 . . . . 1 . . . . . . . . . 1 1 . . Garrison Relay 16 | . . . . . . . . . 8 . 7 . . . . . . . . 1 . Phase Generator 1 | . . . . . . . . . . . 1 . . . . . . . . . . Network Hub 2 | . . . . . . . . . . . . . . . . . . 2 . . . Energy Cycler 5 | . . . . . . . . . . . . . . . 5 . . . . . . Machines Repaired . | . . . . . . . . . . . . . . . . . . . . . . Machines Dismantled 2 | . . . . . 1 . . . 1 . . . . . . . . . . . . Machines Sabotaged . | . . . . . . . . . . . . . . . . . . . . . . Overloaded Fab Kills . | . . . . . . . . . . . . . . . . . . . . . . Hacking | -11 -10 -9 -8 -7 -7 -7 -7 -5 -5 -5 -5 -5 -5 -4 -4 -4 -4 -4 -3 -3 -3 --------- Run | Yrd Mat Mat Mat Fac Sto Rec Scr Fac Gar Fac Gar Fac Gar Fac Ext Cet Arc Hub Res Gar Res Machines Accessed 96 | . 8 8 14 12 11 3 1 8 . 3 . 2 . 2 5 1 . 6 10 1 1 Terminals 60 | . 7 6 9 6 9 3 . 5 . 1 . . . . 5 1 . 5 2 1 . Fabricators 5 | . . . . 3 . . . . . . . 1 . . . . . . 1 . . Repair Stations 12 | . 1 2 2 . 2 . . 1 . 1 . . . 1 . . . . 1 . 1 Recycling Units 2 | . . . . . . . . . . . . . . . . . . . 2 . . Scanalyzers 9 | . . . 2 3 . . . 1 . . . . . 1 . . . . 2 . . Garrison Access 7 | . . . 1 . . . . 1 . 1 . 1 . . . . . 1 2 . . Total Hacks 311 | . 26 21 50 46 26 5 1 19 . 4 . 2 . 4 11 2 . 37 49 2 6 Successful 202 | . 21 14 39 34 16 1 1 8 . 2 . 2 . 3 5 1 . 21 34 . . Failed 108 | . 4 7 11 12 10 4 . 11 . 2 . . . 1 6 1 . 16 15 2 6 Catastrophic 15 | . . 1 1 . 1 2 . 2 . 1 . . . . 1 . . 1 3 1 1 Database Lockouts 1 | . 1 . . . . . . . . . . . . . . . . . . . . Manual 124 | . 14 19 24 15 8 3 . 6 . . . . . . . . . 30 5 . . Terminals 186 | . 22 17 32 20 19 5 . 10 . 1 . . . . 11 2 . 36 9 2 . Fabricators 13 | . . . . 10 . . . . . . . 1 . . . . . . 2 . . Repair Stations 43 | . 4 4 7 . 7 . . 3 . 2 . . . 3 . . . . 7 . 6 Recycling Units 4 | . . . . . . . . . . . . . . . . . . . 4 . . Scanalyzers 56 | . . . 9 16 . . . 5 . . . . . 1 . . . . 25 . . Garrison Access 8 | . . . 2 . . . . 1 . 1 . 1 . . . . . 1 2 . . Terminal Hacks 64 | . 10 2 11 10 5 . 1 . . . . . . . 5 1 . 17 2 . . Record 2 | . . . . . . . . . . . . . . . . . . . 2 . . Part Schematic 5 | . 1 . . 3 1 . . . . . . . . . . . . . . . . Robot Schematic 1 | . . . . 1 . . . . . . . . . . . . . . . . . Robot Analysis 6 | . 2 . 2 . 2 . . . . . . . . . . . . . . . . Prototype ID Bank 12 | . 2 1 6 2 . . . . . . . . . . . . . 1 . . . Open Door 3 | . . . . . 2 . . . . . . . . . . 1 . . . . . Branch Access Points 3 | . . 1 1 . . . . . . . . . . . 1 . . . . . . Machine Index 1 | . 1 . . . . . . . . . . . . . . . . . . . . Terminal Index 4 | . . . . 1 . . . . . . . . . . 1 . . 2 . . . Scanalyzer Index 1 | . . . 1 . . . . . . . . . . . . . . . . . . Unreport Threat 3 | . . . . 1 . . . . . . . . . . 2 . . . . . . Locate Traps 4 | . 1 . . 2 . . . . . . . . . . . . . 1 . . . Disarm Traps 2 | . 2 . . . . . . . . . . . . . . . . . . . . Hauler Manifests 2 | . 1 . . . . . . . . . . . . . 1 . . . . . . Registered Components 1 | . . . 1 . . . . . . . . . . . . . . . . . . Zone Layout 13 | . . . . . . . . . . . . . . . . . . 13 . . . Derelict Proto ID Bank 1 | . . . . . . . 1 . . . . . . . . . . . . . . Fabricator Hacks 9 | . . . . 6 . . . . . . . 1 . . . . . . 2 . . Network Status 2 | . . . . 1 . . . . . . . 1 . . . . . . . . . Load Schematic 3 | . . . . 2 . . . . . . . . . . . . . . 1 . . Build 4 | . . . . 3 . . . . . . . . . . . . . . 1 . . Repair Station Hacks 27 | . 4 2 6 . 5 . . 2 . 1 . . . 3 . . . . 4 . . Scan Component 15 | . 2 1 3 . 3 . . 1 . 1 . . . 2 . . . . 2 . . Repair 12 | . 2 1 3 . 2 . . 1 . . . . . 1 . . . . 2 . . Recycling Unit Hacks . | . . . . . . . . . . . . . . . . . . . . . . Scanalyzer 44 | . . . 7 11 . . . 4 . . . . . . . . . . 22 . . Insert Component 19 | . . . 4 5 . . . 1 . . . . . . . . . . 9 . . Analyze 25 | . . . 3 6 . . . 3 . . . . . . . . . . 13 . . Garrison Access Hacks 7 | . . . 1 . . . . 1 . 1 . 1 . . . . . 1 2 . . Unlock Access 4 | . . . . . . . . 1 . 1 . 1 . . . . . . 1 . . Seal Access 3 | . . . 1 . . . . . . . . . . . . . . 1 1 . . Unauthorized Hacks 51 | . 7 10 14 7 6 1 . 1 . . . . . . . . . 3 2 . . Terminals 41 | . 7 9 11 4 6 1 . . . . . . . . . . . 3 . . . Track 1 | . . . . . . . . . . . . . . . . . . 1 . . . Assimilate 1 | . . . . 1 . . . . . . . . . . . . . . . . . Botnet 17 | . 2 3 4 3 3 . . . . . . . . . . . . 2 . . . Skim 22 | . 5 6 7 . 3 1 . . . . . . . . . . . . . . . Fabricators 2 | . . . . 2 . . . . . . . . . . . . . . . . . Liberate 1 | . . . . 1 . . . . . . . . . . . . . . . . . Fabnet 1 | . . . . 1 . . . . . . . . . . . . . . . . . Repair Stations 4 | . . 1 1 . . . . . . . . . . . . . . . 2 . . Mechanics 2 | . . 1 1 . . . . . . . . . . . . . . . . . . Recycling Units . | . . . . . . . . . . . . . . . . . . . . . . Scrapoids 2 | . . . . . . . . . . . . . . . . . . . 2 . . Scanalyzers 4 | . . . 2 1 . . . 1 . . . . . . . . . . . . . Extract 4 | . . . 2 1 . . . 1 . . . . . . . . . . . . . Garrison Access . | . . . . . . . . . . . . . . . . . . . . . . Data Cores Recovered 2 | . . . 1 . . . . . . . . 1 . . . . . . . . . Used . | . . . . . . . . . . . . . . . . . . . . . . Hacking Detections 80 | . 8 6 11 10 10 3 . 7 . 2 . 2 . 2 5 1 . 5 6 1 1 Full Trace Events 15 | . . . 1 4 1 . . 5 . . . . . . 1 . . . 3 . . Feedback Events . | . . . . . . . . . . . . . . . . . . . . . . Feedback Blocked . | . . . . . . . . . . . . . . . . . . . . . . Robot Schematics Acquired 1 | . . . . 1 . . . . . . . . . . . . . . . . . Robots Built 9 | . . . . 9 . . . . . . . . . . . . . . . . . Authchips . | . . . . . . . . . . . . . . . . . . . . . . Time 420 | . . . . 420 . . . . . . . . . . . . . . . . . Total Robot Build Rating 39 | . . . . 39 . . . . . . . . . . . . . . . . . Part Schematics Acquired 32 | . 1 . 5 15 1 . . 3 . . . . . . . . . . 7 . . Parts Built 1 | . . . . . . . . . . . . . . . . . . . 1 . . Authchips . | . . . . . . . . . . . . . . . . . . . . . . Time 204 | . . . . . . . . . . . . . . . . . . . 204 . . Total Part Build Rating 8 | . . . . . . . . . . . . . . . . . . . 8 . . Parts Repaired 11 | . 2 1 3 . 2 . . 1 . . . . . 1 . . . . 1 . . Time 433 | . 64 26 121 . 50 . . 44 . . . . . 56 . . . . 72 . . Parts Recycled . | . . . . . . . . . . . . . . . . . . . . . . Recycled Matter . | . . . . . . . . . . . . . . . . . . . . . . Retrieved Matter . | . . . . . . . . . . . . . . . . . . . . . . Retrieved Components . | . . . . . . . . . . . . . . . . . . . . . . Parts Scanalyzed 17 | . . . 3 5 . . . 1 . . . . . . . . . . 8 . . Part Schematics Acquired 15 | . . . 3 4 . . . 1 . . . . . . . . . . 7 . . Parts Damaged . | . . . . . . . . . . . . . . . . . . . . . . Bothacking | -11 -10 -9 -8 -7 -7 -7 -7 -5 -5 -5 -5 -5 -5 -4 -4 -4 -4 -4 -3 -3 -3 ------------ Run | Yrd Mat Mat Mat Fac Sto Rec Scr Fac Gar Fac Gar Fac Gar Fac Ext Cet Arc Hub Res Gar Res Used RIF Installer 2 | . . . . . . . . . . . 1 . 1 . . . . . . . . Structural Interface 1 | . . . . . . . . . . . . . 1 . . . . . . . . Robots Hacked 4 | . . . . . . . . 1 1 . 2 . . . . . . . . . . Non-combat . | . . . . . . . . . . . . . . . . . . . . . . Combat 4 | . . . . . . . . 1 1 . 2 . . . . . . . . . . Robot Hacks Applied . | . . . . . . . . . . . . . . . . . . . . . . Relay Couplers Released 68 | . . . . . . . . 1 36 . 28 . . . . . . . . 3 . Machine Destruction 68 | . . . . . . . . 1 36 . 28 . . . . . . . . 3 . Fabnet Peak Effective % 1 | . . . . . . . . 1 1 1 1 1 1 . . . . . . . . Autooverrided 4 | . . . . . . . . 1 1 . 2 . . . . . . . . . . Robots Rewired 31 | . . . . . . 7 . . 5 . 9 . . . 10 . . . . . . Allies Hacked 3 | . . . . . . . . . . . 1 . . . . . . . 2 . . Hacks Repelled 2 | . . . . . . . . . . . . . . . . . . . 2 . . Allies | -11 -10 -9 -8 -7 -7 -7 -7 -5 -5 -5 -5 -5 -5 -4 -4 -4 -4 -4 -3 -3 -3 -------- Run | Yrd Mat Mat Mat Fac Sto Rec Scr Fac Gar Fac Gar Fac Gar Fac Ext Cet Arc Hub Res Gar Res Total Allies 55 | . . . . 10 . 7 . 1 6 . 11 . . . 10 . . . 10 . . Largest Group 11 | . . . . 7 3 7 6 6 4 4 11 6 2 . 6 6 6 3 5 . . Highest-Rated Group 620 | . . . . 179 82 159 147 147 313 313 620 409 191 . 234 234 234 121 323 . . Highest-Rated Ally 148 | . . . . 29 29 40 40 40 148 148 148 142 142 . 51 46 46 46 67 . . Total Orders 13 | . . . . . . . . . . 2 7 . . . . 4 . . . . . STAY 8 | . . . . . . . . . . 1 5 . . . . 2 . . . . . FOLLOW 5 | . . . . . . . . . . 1 2 . . . . 2 . . . . . Ally Attacks 588 | . . . . 140 52 23 . 6 21 38 102 9 10 . 32 . 18 5 132 . . Total Damage 14647 | . . . . 2112 701 778 . 119 470 1249 3534 283 269 . 833 . 549 74 3676 . . Kills 110 | . . . . 29 6 7 . . 5 11 22 1 . . 4 . 1 . 24 . . Allies Corrupted 2 | . . . . 1 . . . . . . . . . . 1 . . . . . . Allies Melted 1 | . . . . . . . . . . . 1 . . . . . . . . . . Intel | -11 -10 -9 -8 -7 -7 -7 -7 -5 -5 -5 -5 -5 -5 -4 -4 -4 -4 -4 -3 -3 -3 ------- Run | Yrd Mat Mat Mat Fac Sto Rec Scr Fac Gar Fac Gar Fac Gar Fac Ext Cet Arc Hub Res Gar Res Robot Analysis Total 6 | . 2 . 2 . 2 . . . . . . . . . . . . . . . . Derelict Logs Recovered . | . . . . . . . . . . . . . . . . . . . . . . Drone Launches . | . . . . . . . . . . . . . . . . . . . . . . Drone Recoveries . | . . . . . . . . . . . . . . . . . . . . . . Exploration | -11 -10 -9 -8 -7 -7 -7 -7 -5 -5 -5 -5 -5 -5 -4 -4 -4 -4 -4 -3 -3 -3 ------------- Run | Yrd Mat Mat Mat Fac Sto Rec Scr Fac Gar Fac Gar Fac Gar Fac Ext Cet Arc Hub Res Gar Res Turns Passed 24998 | 6 930 1263 2262 1959 1628 1206 1502 1798 2173 451 2170 402 312 882 1174 590 193 990 2069 600 438 Spaces Moved 11552 | 1 466 633 1055 1022 813 693 932 713 881 167 957 182 148 360 562 276 76 470 785 214 146 Core 84 | . . . . . . . . . 14 . . . . . . . . . . 65 5 Treads 11423 | 1 466 633 1055 1022 813 693 932 713 867 167 957 182 148 360 562 276 76 470 785 149 96 Legs 45 | . . . . . . . . . . . . . . . . . . . . . 45 Wheels . | . . . . . . . . . . . . . . . . . . . . . . Hover . | . . . . . . . . . . . . . . . . . . . . . . Flight . | . . . . . . . . . . . . . . . . . . . . . . Fastest Speed 50 | 160 160 160 156 163 148 152 152 158 50 162 162 167 167 170 160 160 160 160 160 50 50 Average Speed 160 | 160 160 160 158 163 152 152 157 161 160 162 165 167 169 170 164 160 160 160 160 168 156 Slowest Speed 305 | 160 160 160 163 163 163 152 158 166 200 162 167 167 170 170 170 160 160 160 165 305 180 Overloaded Moves . | . . . . . . . . . . . . . . . . . . . . . . Propulsion Burnouts . | . . . . . . . . . . . . . . . . . . . . . . Robots Hopped 1 | . . . . . . . . . . . 1 . . . . . . . . . . Cave-ins Triggered . | . . . . . . . . . . . . . . . . . . . . . . Exploration Rate (%) 50 | 2 90 43 87 25 93 98 72 27 86 7 89 10 27 11 75 69 72 45 25 43 4 Regions Visited 21 Branch Regions 7 Pre-discovered Areas 2 | . . . 1 . . . 1 . . . . . . . . . . . . . . Known Exits Taken 12 | . 1 . . 1 1 . . 1 . 1 . 1 . 1 1 1 1 1 1 . . Unknown Exits Taken 5 | 1 . 1 1 . . 1 1 . . . . . . . . . . . . . . Scrap Searched 5 | . . . . . . . 5 . . . . . . . . . . . . . . Spaces Dug 11 | . . . . . 3 . . . 1 6 . . . . . . . . 1 . . Terrain Destroyed 960 | . 10 . . 31 63 . . 26 28 32 90 2 49 6 48 7 4 404 128 32 . Melee . | . . . . . . . . . . . . . . . . . . . . . . Projectile 160 | . . . . . 5 . . 8 8 11 14 2 . 6 27 7 4 30 36 2 . AOE 800 | . 10 . . 31 58 . . 18 20 21 76 . 49 . 21 . . 374 92 30 . Terrain Rammed . | . . . . . . . . . . . . . . . . . . . . . . Walls Destroyed . | . . . . . . . . . . . . . . . . . . . . . . Machines Disabled . | . . . . . . . . . . . . . . . . . . . . . . Actions | -11 -10 -9 -8 -7 -7 -7 -7 -5 -5 -5 -5 -5 -5 -4 -4 -4 -4 -4 -3 -3 -3 --------- Run | Yrd Mat Mat Mat Fac Sto Rec Scr Fac Gar Fac Gar Fac Gar Fac Ext Cet Arc Hub Res Gar Res Total 15734 | 7 594 790 1466 1185 1039 779 972 1065 1438 332 1349 254 174 559 720 383 113 571 1281 395 268 Wait 1868 | . 64 55 215 76 87 21 17 102 326 146 155 55 1 117 27 43 11 3 218 86 43 Move 11532 | . 465 632 1054 1021 812 692 931 713 880 166 954 182 147 359 561 275 75 469 785 213 146 Hop 1 | . . . . . . . . . . . 1 . . . . . . . . . . Pick Up 180 | . 17 8 14 4 10 . 7 19 19 1 8 . 1 7 6 5 3 3 29 18 1 Fast Attach 152 | . 2 6 4 . 6 . . 17 19 2 15 . . 11 4 7 . 8 25 9 17 Attach 84 | 2 1 4 3 3 2 1 . 15 4 . 1 . 1 7 2 1 . 1 22 13 1 Detach 6 | . . 1 . . 1 . . 1 2 . . . . . . 1 . . . . . Swap 205 | 1 2 14 35 8 14 . 7 22 24 4 13 2 4 6 11 7 . 7 19 4 1 Drop 280 | 4 4 17 40 4 18 1 10 27 21 5 26 2 1 9 18 17 3 9 25 13 6 Fire 1203 | . 35 53 96 65 78 38 . 146 98 8 98 13 19 41 54 27 21 71 154 35 53 Melee 7 | . . . . . . . . . 7 . . . . . . . . . . . . Ram . | . . . . . . . . . . . . . . . . . . . . . . Kick . | . . . . . . . . . . . . . . . . . . . . . . Crush 31 | . 4 . 5 4 3 1 . 3 . . 5 . . 2 . . . . 4 . . Escape Stasis 4 | . . . . . . . . . . . . . . . . . . . . 4 . Rewire 165 | . . . . . . 25 . . 30 . 73 . . . 37 . . . . . . Trap . | . . . . . . . . . . . . . . . . . . . . . . Miscellaneous 16 | . . . . . 8 . . . 8 . . . . . . . . . . . . Route ------- -11/Scrapyard -10/Materials (discovered 4 exits: *Mat x3 / [*Min]) -9/Materials (discovered 3 exits: *Mat / *Min x2) -8/Materials (discovered 3 exits: *Fac x3) -7/Factory (discovered 6 exits: *Fac x3 / *Sto / Low x2) -7/Storage (discovered 2 exits: *Fac / *Rec) -7/Recycling (discovered 2 exits: *Fac / *Scr) -7/Scraptown -5/Factory -5/Garrison (discovered 3 exits: *Fac x3) -5/Factory -5/Garrison (discovered 3 exits: *Fac x3) -5/Factory -5/Garrison -4/Factory (discovered 2 exits: *Ext x2) -4/Extension (discovered 3 exits: *Res x2 / *Cet) -4/Cetus (discovered 2 exits: *Res / *Arc) -4/Archives (discovered 2 exits: *Hub x2) -4/Hub_04(d) -3/Research (discovered 2 exits: *Res / Gar) -3/Garrison -3/Research History --------- Turn | Location | Event 7 | -11/Scrapyard | Discovered new exit (range 0) 7 | -11/Scrapyard | Entered Materials 304 | -10/Materials | Discovered new exit (range 7) 312 | -10/Materials | Build established: Mutant 395 | -10/Materials | Discovered new exit (range 12) 478 | -10/Materials | Repaired Imp. Heat Sink 505 | -10/Materials | Repaired Structural Scanner 632 | -10/Materials | Central database locked down 711 | -10/Materials | Identified exit to Materials 772 | -10/Materials | Learned location of 1 exit from Storage 787 | -10/Materials | Learned Storage emergency access door positions 811 | -10/Materials | Learned Materials emergency access door positions 840 | -10/Materials | Learned Storage trap positions 937 | -10/Materials | Entered another Materials area 937 | -9/Materials | Evolved 2 slots: Propulsion x1, Utility x1 938 | -9/Materials | Identified exit to Mines 1112 | -9/Materials | Repaired Structural Scanner 1501 | -9/Materials | Build established: Scavenger-Mutant 1713 | -9/Materials | Discovered new exit (range 12) 2106 | -9/Materials | Learned Storage machine intel 2151 | -9/Materials | Learned 4 Recycling zone layouts 2186 | -9/Materials | Learned 2 Storage zone layouts 2200 | -9/Materials | Entered another Materials area 2200 | -8/Materials | Evolved 2 slots: Propulsion x1, Utility x1 2509 | -8/Materials | Garrison activated, responded to threat 2687 | -8/Materials | Discovered new exit (range 11) 3681 | -8/Materials | Discovered new exit (range 11) 3829 | -8/Materials | Build established: Mutant 4114 | -8/Materials | Discovered new exit (range 8) 4189 | -8/Materials | Learned Storage stockpile data 4233 | -8/Materials | Learned location of Extension (-4) 4247 | -8/Materials | Repaired Structural Scanner 4292 | -8/Materials | Repaired Imp. Medium Armor Plating 4295 | -8/Materials | Learned 12 Factory zone layouts 4311 | -8/Materials | Learned Factory scanalyzer intel 4315 | -8/Materials | Learned Storage emergency access door positions 4316 | -8/Materials | Learned location of 1 exit from Storage 4345 | -8/Materials | Repaired Adv. Beam Cannon 4366 | -8/Materials | Learned location of 3 exits from Factory 4462 | -8/Materials | Entered Factory 4462 | -7/Factory | Evolved 2 slots: Power x1, Utility x1 4463 | -7/Factory | Identified exit to Factory 4464 | -7/Factory | Identified exit to Lower Caves 4465 | -7/Factory | Identified exit to Storage 4466 | -7/Factory | Loaded intel: 4 scanalyzer locations 5262 | -7/Factory | Fabricated G-47 Trooper (x3) 5605 | -7/Factory | Build established: Commander-Mutant 5723 | -7/Factory | Fabricated G-50 Soldier? 6010 | -7/Factory | Fabricated G-50 Soldier? 6101 | -7/Factory | Lost 4 allies 6342 | -7/Factory | Build established: Mutant 6421 | -7/Factory | Entered Storage 6421 | -7/Storage | Accompanied by 3 allies 6422 | -7/Storage | Identified exit to Recycling 6424 | -7/Storage | Loaded intel: 14 trap records 6426 | -7/Storage | Loaded intel: 46 machine locations 6685 | -7/Storage | Lost 3 allies 6905 | -7/Storage | Found Prototype Processor 6920 | -7/Storage | Used back door to open Recycling access 7390 | -7/Storage | Repaired Adv. Heat Sink 7416 | -7/Storage | Repaired Adv. Beam Cannon 7827 | -7/Storage | Identified Exp. Targeting Computer 8049 | -7/Storage | Entered Recycling 8050 | -7/Recycling | Met a Zionite searching for Scraptown 8713 | -7/Recycling | Build established: Commander-Mutant 8717 | -7/Recycling | Discovered new exit (range 16) 9197 | -7/Recycling | Scanned before Scraplab entrance 9220 | -7/Recycling | Entered Scraplab 9232 | -7/Recycling | Discovered new exit (range 2) 9255 | -7/Recycling | Entered Scraptown 9255 | -7/Scraptown | Accompanied by 6 allies 9255 | -7/Scraptown | System corruption cleaned by C-Scrubber 9884 | -7/Scraptown | Visited Cave Peace 9909 | -7/Scraptown | Visited Symbiants 9921 | -7/Scraptown | Visited CPS Storage 9943 | -7/Scraptown | Visited Red Mages 9996 | -7/Scraptown | Visited Cyclists 10012 | -7/Scraptown | Visited IN-MT5's Study 10052 | -7/Scraptown | Visited UFD Registry 10052 | -7/Scraptown | Registered with UFD as "Nanorunner" 10095 | -7/Scraptown | Visited Science Guys 10174 | -7/Scraptown | Visited Scrap Suit Storage 10199 | -7/Scraptown | Visited Abandonware Association 10226 | -7/Scraptown | Visited Science Testing Area 10262 | -7/Scraptown | Visited Junk Cannon Lab 10283 | -7/Scraptown | Visited Scrapoid Research Area 10303 | -7/Scraptown | Visited DA-N13 Charitable Foundation 10309 | -7/Scraptown | Found DCF Scrap (29 items) 10399 | -7/Scraptown | Visited Chapter 10 10432 | -7/Scraptown | Visited Infowarlord's Domain 10458 | -7/Scraptown | Visited Curators Association 10542 | -7/Scraptown | Found Exp. Sensor Array 10739 | -7/Scraptown | Discovered new exit (range 5) 10757 | -7/Scraptown | Entered Factory 10757 | -5/Factory | Accompanied by 6 allies 10757 | -5/Factory | Evolved 4 slots: Utility x3, Weapon x1 10866 | -5/Factory | Lost 4 allies 11003 | -5/Factory | Repaired Med. Treads 11122 | -5/Factory | Build established: Gunner 11247 | -5/Factory | Destroyed 9 combat bots 11357 | -5/Factory | First assault squad dispatched 11740 | -5/Factory | Build established: Scavenger-Gunner 12139 | -5/Factory | Garrison activated, responded to threat 12183 | -5/Factory | Lost 3 parts (1p1n1w) 12184 | -5/Factory | Destroyed 8 combat bots 12396 | -5/Factory | Spotted B-75 Beast 12399 | -5/Factory | Destroyed B-75 Beast 12555 | -5/Factory | Identified exit to Garrison 12555 | -5/Factory | Entered Garrison 12605 | -5/Garrison | Triggered checkpoint 12633 | -5/Garrison | Garrison Relay disabled 12705 | -5/Garrison | Garrison Relay disabled 12709 | -5/Garrison | Garrison Relay disabled 12723 | -5/Garrison | Garrison Relay disabled 12726 | -5/Garrison | Garrison Relay disabled 12796 | -5/Garrison | Spotted B-75 Beast 12806 | -5/Garrison | Destroyed B-75 Beast 12848 | -5/Garrison | System corruption reached 10% 12888 | -5/Garrison | Lost 3 parts (1p1u1w) 12921 | -5/Garrison | Core integrity fell below 50% 12968 | -5/Garrison | Lost 8 parts (2n4u2w) 13059 | -5/Garrison | Local machine network offline 13234 | -5/Garrison | Triggered checkpoint 13269 | -5/Garrison | Triggered checkpoint 13309 | -5/Garrison | Triggered checkpoint 13373 | -5/Garrison | Triggered checkpoint 13441 | -5/Garrison | Garrison Relay disabled 13605 | -5/Garrison | Discovered new exit (range 9) 13769 | -5/Garrison | Spotted B-75 Beast 13771 | -5/Garrison | Spotted B-86 Titan 13785 | -5/Garrison | Destroyed B-75 Beast 13804 | -5/Garrison | Allies destroyed B-86 Titan 13873 | -5/Garrison | Rewired B-75 Beast 13895 | -5/Garrison | Rewired B-90 Cyclops 14031 | -5/Garrison | Triggered checkpoint 14046 | -5/Garrison | Discovered new exit (range 13) 14177 | -5/Garrison | Garrison Relay disabled 14489 | -5/Garrison | Triggered checkpoint 14542 | -5/Garrison | Garrison Relay disabled 14655 | -5/Garrison | Discovered new exit (range 9) 14728 | -5/Garrison | Entered Factory 14728 | -5/Factory | Accompanied by 4 allies 14993 | -5/Factory | Spotted B-75 Beast 15012 | -5/Factory | Allies destroyed B-75 Beast 15028 | -5/Factory | First assault squad dispatched 15133 | -5/Factory | Identified exit to Garrison 15179 | -5/Factory | Entered Garrison 15179 | -5/Garrison | Accompanied by 4 allies 15234 | -5/Garrison | Rewired B-75 Beast 15252 | -5/Garrison | Heavy support dispatched to Factory 15501 | -5/Garrison | Triggered checkpoint 15545 | -5/Garrison | Triggered checkpoint 15549 | -5/Garrison | Triggered checkpoint 15550 | -5/Garrison | Triggered checkpoint 15588 | -5/Garrison | Triggered checkpoint 15927 | -5/Garrison | Phase Generator disabled 15938 | -5/Garrison | Discovered new exit (range 7) 16084 | -5/Garrison | Destroyed 9 combat bots 16084 | -5/Garrison | Garrison Relay disabled 16295 | -5/Garrison | P-70 Sage assimilated allied Sentinel 6c 16298 | -5/Garrison | P-70 Sage assimilated allied Sentinel 6a 16315 | -5/Garrison | Garrison Relay disabled 16318 | -5/Garrison | Garrison Relay disabled 16545 | -5/Garrison | Triggered checkpoint 16555 | -5/Garrison | Garrison Relay disabled 16672 | -5/Garrison | Discovered new exit (range 8) 16741 | -5/Garrison | Heavy support dispatched to Factory 16867 | -5/Garrison | Installed Relay Interface Framework 16884 | -5/Garrison | Discovered new exit (range 15) 16897 | -5/Garrison | Triggered checkpoint 16981 | -5/Garrison | H-XX Assembler disabled 17187 | -5/Garrison | Garrison Relay disabled 17349 | -5/Garrison | Entered Factory 17349 | -5/Factory | Accompanied by 6 allies 17549 | -5/Factory | Core integrity fell below 20% 17596 | -5/Factory | Spotted B-75 Beast 17607 | -5/Factory | Allies destroyed B-75 Beast 17649 | -5/Factory | First assault squad dispatched 17719 | -5/Factory | Identified exit to Garrison 17751 | -5/Factory | Entered Garrison 17751 | -5/Garrison | Accompanied by 2 allies 17801 | -5/Garrison | Triggered checkpoint 17828 | -5/Garrison | Triggered checkpoint 17876 | -5/Garrison | Destroyed 12 combat bots 17930 | -5/Garrison | Discovered new exit (range 15) 18009 | -5/Garrison | Expanded RIF knowledge: Structural Interface 18063 | -5/Garrison | Entered Factory 18063 | -4/Factory | Evolved 2 slots: Utility x2 18064 | -4/Factory | Identified exit to Extension 18177 | -4/Factory | Repaired Adv. Cooling System 18313 | -4/Factory | First assault squad dispatched 18444 | -4/Factory | Lost 3 parts (2u1w) 18763 | -4/Factory | Cargo convoy interrupted 18920 | -4/Factory | Discovered exit to Extension (range 16) 18945 | -4/Factory | Entered Extension 18949 | -4/Extension | Disrupted transfer network 18991 | -4/Extension | Energy Cycler disabled 18992 | -4/Extension | Rescued a captive Derelict 19276 | -4/Extension | Identified exit to Cetus 19441 | -4/Extension | Spotted B-86 Titan 19513 | -4/Extension | Destroyed B-86 Titan 19523 | -4/Extension | Spotted B-86 Titan 19544 | -4/Extension | Destroyed B-86 Titan 19547 | -4/Extension | Discovered new exit (range 14) 19640 | -4/Extension | Extracted ID and sensor layout for unrecognized location from A7's data core 20073 | -4/Extension | Discovered new exit (range 10) 20119 | -4/Extension | Entered Cetus 20119 | -4/Cetus | Accompanied by 6 allies 20153 | -4/Cetus | Spotted Cetus Guard 20153 | -4/Cetus | Spotted Cetus Guard 20155 | -4/Cetus | Spotted Cetus Guard 20155 | -4/Cetus | Spotted Cetus Guard 20166 | -4/Cetus | Destroyed Cetus Guard 20172 | -4/Cetus | Destroyed Cetus Guard 20177 | -4/Cetus | Destroyed Cetus Guard 20189 | -4/Cetus | Destroyed Cetus Guard 20475 | -4/Cetus | Discovered new exit (range 15) 20513 | -4/Cetus | Spotted Cetus Guard 20513 | -4/Cetus | Spotted Cetus Guard 20514 | -4/Cetus | Spotted Cetus Guard 20515 | -4/Cetus | Spotted Cetus Guard 20531 | -4/Cetus | Destroyed Cetus Guard 20536 | -4/Cetus | Destroyed Cetus Guard 20547 | -4/Cetus | Destroyed Cetus Guard 20550 | -4/Cetus | Destroyed Cetus Guard 20560 | -4/Cetus | Discovered new exit (range 15) 20568 | -4/Cetus | Met Revision 17 20571 | -4/Cetus | Murdered Revision 17 20700 | -4/Cetus | Identified exit to Archives 20709 | -4/Cetus | Entered Archives 20709 | -4/Archives | Accompanied by 6 allies 20761 | -4/Archives | Discovered new exit (range 16) 20782 | -4/Archives | Lost 3 allies 20872 | -4/Archives | Discovered new exit (range 13) 20890 | -4/Archives | Identified exit to Hub_04(d) 20902 | -4/Archives | Entered Hub_04(d) 20902 | -4/Hub_04(d) | Accompanied by 3 allies 21117 | -4/Hub_04(d) | Lost 3 allies 21277 | -4/Hub_04(d) | Network Hub disabled 21344 | -4/Hub_04(d) | Found Prototype Hackware 21344 | -4/Hub_04(d) | Identified Exp. System Shield 21521 | -4/Hub_04(d) | Spotted Lightning 21523 | -4/Hub_04(d) | Spotted Lightning 21525 | -4/Hub_04(d) | Spotted Lightning 21527 | -4/Hub_04(d) | System corruption reached 10% 21549 | -4/Hub_04(d) | Destroyed Lightning 21623 | -4/Hub_04(d) | Destroyed Lightning 21631 | -4/Hub_04(d) | Destroyed Lightning 21772 | -4/Hub_04(d) | Discovered new exit (range 13) 21816 | -4/Hub_04(d) | Disrupted transfer network 21862 | -4/Hub_04(d) | Destroyed 8 combat bots 21863 | -4/Hub_04(d) | Network Hub disabled 21891 | -4/Hub_04(d) | Identified exit to Research 21892 | -4/Hub_04(d) | Entered Research 21892 | -3/Research | Evolved 2 slots: Utility x2 22051 | -3/Research | Spotted B-86 Titan 22069 | -3/Research | Destroyed B-86 Titan 22126 | -3/Research | System corruption reached 10% 22147 | -3/Research | Found Fusion Bomb Launcher 22238 | -3/Research | Lost 4 parts (1p1n1u1w) 22551 | -3/Research | Build established: Wizard-Gunner 22636 | -3/Research | Fabricated Centrium Heavy Treads (x1) 22642 | -3/Research | First assault squad dispatched 22709 | -3/Research | Scrapoid reinforcements arrived 22811 | -3/Research | Repaired Imp. Core Shielding 22904 | -3/Research | Scrapoid reinforcements arrived 22910 | -3/Research | P-80 Master assimilated allied 03R09-D 22917 | -3/Research | Lost 5 allies 23063 | -3/Research | Discovered new exit (range 5) 23070 | -3/Research | Identified exit to Research 23176 | -3/Research | Lost 3 allies 23516 | -3/Research | Build established: Scavenger-Gunner 23647 | -3/Research | Garrison activated, responded to threat 23785 | -3/Research | System corruption reached 30% 23837 | -3/Research | Lost 11 parts (3p2n3u3w) 23908 | -3/Research | Lost 3 parts (2u1w) 23961 | -3/Research | Identified exit to Garrison 23961 | -3/Research | Entered Garrison 23990 | -3/Garrison | Lost 3 parts (3w) 24180 | -3/Garrison | Lost 6 parts (1p2n3u) 24357 | -3/Garrison | Garrison Relay disabled 24463 | -3/Garrison | Spotted B-86 Titan 24469 | -3/Garrison | Triggered checkpoint 24469 | -3/Garrison | Triggered checkpoint 24502 | -3/Garrison | Triggered checkpoint 24506 | -3/Garrison | Core integrity fell below 50% 24538 | -3/Garrison | Core integrity fell below 20% 24553 | -3/Garrison | Discovered new exit (range 14) 24561 | -3/Garrison | Entered Research 24569 | -3/Research | Lost 23 parts (3p3n12u5w) 24589 | -3/Research | Found Prototype Processor 24589 | -3/Research | Identified Spectral Analyzer 24770 | -3/Research | Build established: Mutant 24811 | -3/Research | First assault squad dispatched 24999 | -3/Research | Destroyed by G-73 Enforcer with Phase Gun Last Messages --------------- 24965_ Penetrated by Slug. 24968_ Slug penetrates Wall. 24968_ System corrupted: Field Laser failed to cycle. 24972_ System corrupted: Plasma Rifle failed to cycle. 24974_ Penetrated by Slug. 24975_ System corrupted: Phase Gun failed to cycle. 24978_ Y-72 Warden critical meltdown. 24978_ Adv. Heat Sink melted. 24978_ Particle Reactor melted. 24978_ Med. Treads melted. 24979_ System corrupted: Matter fused (-6). 24992_ C-30 ARC bursts open, deploying its payload. 24992_ G-73 Enforcer unfolds itself. 24992_ G-67 Veteran unfolds itself. 24992_ B-74 Champion unfolds itself. 24992_ G-67 Veteran unfolds itself. 24992_ I-47 Archangel unfolds itself. 24996_ Dropped Flexi-carbon Leg. 24996_ Dropped Myomer Leg. 24997_ Acquired Adv. Medium Treads. Map ----- +----------------------------------------------------+ | ??????????# # # #???????????? | | ??????????# # ##########???????????? | | ??????????# # # #???????????? | | ??????????# # # #???????????? | | ??????????# # #! "" =#???????????? | | ??????????# # %# """ #???????????? | | ??????????# # + [ R" #???????????? | | ??????????# # #[ """ #???????????? | | ??????????# # # #???????????? | | ??????????####+##+#+#### # #???????????? | | ?????????????# # #???????????? | | ?????????????# ##########???????????? | | ?????????????# #????????????????????? | | ?????????????# "" #????????????????????? | | ????????######+## "" #????????????????????? | | ????????# # T" #????????????????????? | | ????????# # "" #########+## #???????? | | ????????# # " =%[ #???????? | | ????????#""" # = =#?????????????? | | ????????#""" #% % #?????????????? | | ????????#""" " #?????????????? | | ????????#""" # ###########;#######+##??????? | | ????????#""" # #?# g% [ #??????? | | ????????# # #?# igg %=#??????? | | ????????# ######?#==b ""[ #??????? | | ????????# #??????# @! ""S"" #?????? | | ????????#########??????#=!! "" "" ????????? | | ???????????????????????#=! ?????????? | | ???????????????????????# ????????? | | ???????????????????????# ???????? | | ???????????????????????###################???????? | | | | | | | | | | | | | | | | | | | | | | | | | | | | | | | | | | | | | | | +----------------------------------------------------+ Best States ------------- Heat Dissipation 113 Coolant Potential 80 Energy Generation 45 Energy Capacity 600 Matter Stores 300 Matter Capacity 300 Sight Range 20 Robot Scan Range 20 Terrain Scan Density 85 EM Shielding 2 Armor Coverage 825 Resistance: KI 20 Resistance: TH 20 Resistance: EX 20 Resistance: EM 45 Resistance: I 20 Resistance: S 20 Resistance: P 20 Core Shielding 30 Weapon Cycling 15 Phase Shifting 10 Evasion (%) 50 Targeting Accuracy 20 Recoil Reduction 4 Salvage Targeting 4 Offensive Hacking 34 Defensive Hacking 28 Authchip Count 6 Item Schematics ----------------- Hcp. Storage Unit | -10/Materials | Hacked Plasma Cutter | -8/Materials | Scanalyzed Hacking Suite | -8/Materials | Scanalyzed Prc. Beam Rifle | -8/Materials | Extracted Adv. Treads | -8/Materials | Scanalyzed Hpw. Shotgun | -8/Materials | Extracted Adv. Targeting Computer | -7/Factory | Scanalyzed Missile Launcher | -7/Factory | Scanalyzed Imp. Medium Armor Plating | -7/Factory | Scanalyzed Trap Scanner | -7/Factory | Scanalyzed Targeting Computer | -7/Factory | Extracted Imp. Sensor Array | -7/Factory | Extracted Gatling Laser | -7/Factory | Extracted Flak Gun | -7/Factory | Extracted Reaction Control System | -7/Factory | Extracted Carbon-fiber Leg | -7/Factory | Extracted Transport Network Coupler | -7/Factory | Extracted Imp. Terrain Scanner | -7/Factory | Extracted Med. Treads | -7/Factory | Hacked Imp. Deuterium Engine | -7/Factory | Hacked Imp. Cooling System | -7/Factory | Hacked Hrd. Heavy Armor Plating | -7/Storage | Hacked Arm. Medium Treads | -5/Factory | Scanalyzed Gauss Rifle | -5/Factory | Extracted EM Disruption Field | -5/Factory | Extracted Centrium Heavy Treads | -3/Research | Scanalyzed Exp. Sensor Array | -3/Research | Scanalyzed Adv. Heat Sink | -3/Research | Scanalyzed Hvy. Gauss Cannon | -3/Research | Scanalyzed Adv. Matter Compressor | -3/Research | Scanalyzed Adv. Medium Treads | -3/Research | Scanalyzed Lgt. Particle Reactor | -3/Research | Scanalyzed Robot Schematics ------------------ G-50 Soldier | -7/Factory | Hacked Fabricated ------------ G-47 Trooper | x3 | -7/Factory | Preloaded G-50 Soldier | x3 | -7/Factory G-50 Soldier | x3 | -7/Factory Centrium Heavy Treads | x1 | -3/Research Alien Tech Used ----------------- None Achievements -------------- None Challenges ------------ None Game ------ Seed RemoteArmoredPit Manual? 0 Play Time 03:40:07 Cumulative 400.1 hours Start 2024.09.18 @ 11:36:04 End 2024.09.20 @ 03:04:11 Sessions 5 Manual Loads 0 Difficulty Adventurer Special Mode None Game No. 297 Rogue 63 Adventurer 208 Explorer 26 Win Type - Total 2 Types 2/0/0/0/0/0/0/0/0 Lore% 81 Gallery% 79 Achievement% 68 Wizard Run 0 Options --------- Layout 2 ASCII 0 Keyboard 0 Movement Mouse Keybinds 0 Fullscreen 0 Font 18/CogNarrow Map View 64x51 Zoom Use 0% Tactical HUD 1 Map Filters NONE Filters BRIGHTNESS(115)|SATURATION(100)|LOW_CONTRAST(0,16,30) Steam 1 RUN: bb100399-8122-4c85-8447-d45859b390b6